Workbook

Sheet CRONOGRAMA FISICO-FINANCEIRO
C1: CRONOGRAMA FÍSICO FINANCEIRO | K1: UNAEN-FF-003
K3: Revisão: 00 | L3: Data: 11/05/2017
A4: SENAI - SERVIÇO NACIONAL DE APRENDIZAGEM INDUSTRIAL - DR/MT
A5: ='PLANILHA ORÇAMENTÁRIA'!A7:F7 -> UNIDADE OPERACIONAL: SENAI BARRA DO BUGRES | D5: ENDEREÇO: AV. TABATINGA ESQUINA COM RUA PLANALTO, CIDADE: BARRA DO BUGRES-MT
A6: CONSTRUTORA: | D6: =CONCATENATE(" VALOR: ","R$ ",TEXT(SUM(C24),"#.##0,00")) -> VALOR: R$ 532.826,89 | H6: PRAZO: 03 MESES
A7: RESPONSÁVEL TÉCNICO:
A8: ='[1]1_IMPLANTAÇÃO'!B14 -> IMPLANTAÇÃO
A11: ITEM | B11: DESCRIÇÃO | C11: ETAPA TOTAL | E11: 1 MÊS | G11: 2 MESES | I11: 3 MESES | K11: TOTAL
C12: (R$) | D12: (%) | E12: (R$) | F12: (%) | G12: (R$) | H12: (%) | I12: (R$) | J12: (%) | K12: (R$) | L12: (%)
A13: ='PLANILHA ORÇAMENTÁRIA'!A14 -> 1.0 | B13: ='PLANILHA ORÇAMENTÁRIA'!B14 -> ADMINISTRAÇÃO DE OBRAS | C13: ='PLANILHA ORÇAMENTÁRIA'!$F$14 -> 42832.26 | D13: =C13/$C$24*100 -> 8.038682132 | E13: =F13*$C13/100 -> 14562.9684 | F13: 34 | G13: =H13*$C13/100 -> 14134.6458 | H13: 33 | I13: =J13*$C13/100 -> 14134.6458 | J13: 33 | K13: =L13*$C13/100 -> 42832.26 | L13: =F13+H13+J13 -> 100
A14: ='PLANILHA ORÇAMENTÁRIA'!A20 -> 1.1 | B14: ='PLANILHA ORÇAMENTÁRIA'!B20 -> INSTALAÇÃO DE CANTEIRO DE OBRA | C14: ='PLANILHA ORÇAMENTÁRIA'!$F$20 -> 4542.28 | D14: 0.8524870057 | E14: 3315.8644 | F14: 73 | G14: 635.9192 | H14: 14 | I14: 590.4964 | J14: 13 | K14: 4542.28 | L14: =F14+H14+J14 -> 100
A15: ='PLANILHA ORÇAMENTÁRIA'!A25 -> 1.2 | B15: ='PLANILHA ORÇAMENTÁRIA'!B25 -> DEMOLIÇÃO E REMOÇÃO DE FORRO PLATIBANDA, FORRO E LUMINÁRIA DOS BLOCOS A, B, C, D E PASSARELAS DE ACESSO ENTRE OS BLOCOS | C15: ='PLANILHA ORÇAMENTÁRIA'!$F$25 -> 6519.68 | D15: 1.223601909 | E15: 6519.68 | F15: 100 | G15: 0 | H15: 0 | I15: 0 | J15: 0 | K15: 6519.68 | L15: 100
A16: ='PLANILHA ORÇAMENTÁRIA'!A32 -> 1.3 | B16: ='PLANILHA ORÇAMENTÁRIA'!B32 -> FORRO DE PVC 25 CM DE LARGURA PARA OS BEIRAIS E ÁREAS DE CONVIVÊNCIA | C16: ='PLANILHA ORÇAMENTÁRIA'!$F$32 -> 118833.93 | D16: 22.30253995 | E16: 59416.965 | F16: 50 | G16: 59416.965 | H16: 50 | I16: 0 | J16: 0 | K16: 118833.93 | L16: 100
A17: ='PLANILHA ORÇAMENTÁRIA'!A39 -> 1.4 | B17: ='PLANILHA ORÇAMENTÁRIA'!B39 -> EXECUÇÃO DE PLATIBANDA DOS BLOCOS A, B, C, D E LATERAIS DAS PASSARELAS DE ACESSO ENTRE OS BLOCOS | C17: ='PLANILHA ORÇAMENTÁRIA'!$F$39 -> 219004.77 | D17: 41.10242447 | E17: 109502.385 | F17: 50 | G17: 109502.385 | H17: 50 | I17: 0 | J17: 0 | K17: 219004.77 | L17: 100
A18: ='PLANILHA ORÇAMENTÁRIA'!A47 -> 1.5 | B18: ='PLANILHA ORÇAMENTÁRIA'!B47 -> ABERTURA DE CALHA E DESCIDAS VERTICAIS DOS BLOCO A, B, C E D | C18: ='PLANILHA ORÇAMENTÁRIA'!$F$47 -> 36735.68 | D18: 6.894486875 | E18: 18367.84 | F18: 50 | G18: 18367.84 | H18: 50 | I18: 0 | J18: 0 | K18: 36735.68 | L18: 100
A19: ='PLANILHA ORÇAMENTÁRIA'!A57 -> 1.6 | B19: ='PLANILHA ORÇAMENTÁRIA'!B57 -> MANUTENÇÃO/IMPERMEABILIZAÇÃO DE CALHAS DOS BLOCOS A, B, C E D | C19: ='PLANILHA ORÇAMENTÁRIA'!$F$57 -> 77831.44 | D19: 14.60726579 | E19: 0 | F19: 0 | G19: 58373.58 | H19: 75 | I19: 19457.86 | J19: 25 | K19: 77831.44 | L19: 100
A20: ='PLANILHA ORÇAMENTÁRIA'!A63 -> 1.7 | B20: ='PLANILHA ORÇAMENTÁRIA'!B63 -> SERVIÇOS COMPLEMENTARES | C20: ='PLANILHA ORÇAMENTÁRIA'!$F$63 -> 4488.28 | D20: 0.842352382 | E20: 1526.0152 | F20: 34 | G20: 1481.1324 | H20: 33 | I20: 1481.1324 | J20: 33 | K20: 4488.28 | L20: 100
A21: ='PLANILHA ORÇAMENTÁRIA'!A66 -> 1.8 | B21: ='PLANILHA ORÇAMENTÁRIA'!B66 -> PINTURA DA PLATIBANDA METÁLICA | C21: ='PLANILHA ORÇAMENTÁRIA'!$F$66 -> 19376.97 | D21: 3.636635156 | E21: 0 | F21: 0 | G21: 14532.7275 | H21: 75 | I21: 4844.2425 | J21: 25 | K21: 19376.97 | L21: 100
A22: ='PLANILHA ORÇAMENTÁRIA'!A70 -> 1.9 | B22: ='PLANILHA ORÇAMENTÁRIA'!B70 -> ELÉTRICA | C22: ='PLANILHA ORÇAMENTÁRIA'!$F$70 -> 2138.4 | D22: 0.4013310965 | E22: 1069.2 | F22: 50 | G22: 0 | H22: 0 | I22: 1069.2 | J22: 50 | K22: 2138.4 | L22: 100
A23: ='PLANILHA ORÇAMENTÁRIA'!A73 -> 1.10 | B23: ='PLANILHA ORÇAMENTÁRIA'!B73 -> LIMPEZA CONTÍNUA DA OBRA | C23: ='PLANILHA ORÇAMENTÁRIA'!$F$73 -> 523.2 | D23: 0.09819324246 | E23: 177.888 | F23: 34 | G23: 172.656 | H23: 33 | I23: 172.656 | J23: 33 | K23: 523.2 | L23: 100
B24: TOTAL | C24: =ROUND(SUM(C13:C23),2) -> 532826.89 | D24: =SUM(D13:D23) -> 100 | E24: =SUM(E13:E23) -> 214458.806 | F24: =E24/$C24*100 -> 40.24924605 | G24: =SUM(G13:G23) -> 276617.8509 | H24: =G24/$C24*100 -> 51.91514469 | I24: =SUM(I13:I23) -> 41750.2331 | J24: =I24/$C24*100 -> 7.835609254 | K24: =SUM(K13:K23) -> 532826.89 | L24: =K24/$C24*100 -> 100
B25: TOTAL ACUMULADO | E25: =E24 -> 214458.806 | F25: =E25/$C24*100 -> 40.24924605 | G25: =G24+E25 -> 491076.6569 | H25: =G25/$C24*100 -> 92.16439075 | I25: =I24+G25 -> 532826.89 | J25: =I25/$C24*100 -> 100

Sheet CONFER. (hidden)
A1: ITEM | B1: DESCRIÇÃO | C1: UNID. | D1: QUANT. | E1: Valor UNIT. (R$) | F1: Valor Total (R$)
A2: 1.0.1 | B2: ENGENHEIRO CIVIL DE OBRA JUNIOR COM ENCARGOS COMPLEMENTARES CONSIDERANDO 02H/DIA X 03 DIAS NA SEMANA X 3 MESES | C2: H | D2: 72 | E2: 114.73 | F2: 8260.56 | G2: =IF(AND(B2=B3,ROUND(E2,2)=ROUND(E3,2)),"OK",IF(AND(B2<>B3,E2<>E3),"OK",IF(AND(B2=B3,E2<>E3),"ANALISAR",IF(ROUND(E2,2)=ROUND(E3,2),"ANALISAR TEXTO","")))) -> OK
A3: 1.5.1 | B3: TELHADISTA COM ENCARGOS COMPLEMENTARES PARA FINS DE ABERTURA DE PONTOS DE DRENOS DE CALHA. | C3: H | D3: 24 | E3: 26.83 | F3: 643.92 | G3: =IF(AND(B3=B4,ROUND(E3,2)=ROUND(E4,2)),"OK",IF(AND(B3<>B4,E3<>E4),"OK",IF(AND(B3=B4,E3<>E4),"ANALISAR",IF(ROUND(E3,2)=ROUND(E4,2),"ANALISAR TEXTO","")))) -> OK
A4: 1.10.1 | B4: LIMPEZA FINAL DE OBRA | C4: H | D4: 24 | E4: 21.8 | F4: 523.2 | G4: OK
A5: 1.1.3 | B5: GUARDA-CORPO FIXADO EM FÔRMA DE MADEIRA COM TRAVESSÕES EM MADEIRA PREGADA E FECHAMENTO EM TELA DE POLIPROPILENO PARA EDIFICAÇÕES COM ATÉ 2 PAVIMENTOS. AF_11/2017 | C5: M | D5: 13 | E5: 74.76 | F5: 971.88 | G5: OK
A6: 1.3.5 | B6: ACABAMENTOS PARA FORRO (RODA-FORRO EM PERFIL METÁLICO E PLÁSTICO). AF_05/2017 TODOS OS BLOCOS | C6: M | D6: 1045.26 | E6: 14.45 | F6: 15104.01 | G6: OK
A7: 1.5.2 | B7: FIXAÇÃO DE TUBOS VERTICAIS DE PPR DIÂMETROS MAIORES QUE 75 MM COM ABRAÇADEIRA METÁLICA RÍGIDA TIPO D 3", FIXADA EM PERFILADO EM ALVENARIA. AF_05/2015 | C7: M | D7: 171.53 | E7: 6.18 | F7: 1060.06 | G7: OK
A8: 1.5.8 | B8: CONDUTOR EM CHAPA DE CALHA DIMENSÕES 15X15 EXECUÇÃO BOCA TIPO FUNIL | C8: M | D8: 109.5 | E8: 131.94 | F8: 14447.43 | G8: OK
A9: 1.5.3 | B9: TUBO PVC, SERIE R, DN 100 MM, PARA ESGOTO OU AGUAS PLUVIAIS PREDIAIS (NBR 5688) | C9: M | D9: 114.38 | E9: 62.86 | F9: 7189.93 | G9: OK
A10: 1.5.4 | B10: TUBO PVC, SERIE R, DN 150 MM, PARA ESGOTO OU AGUAS PLUVIAIS PREDIAIS (NBR 5688) | C10: M | D10: 57.15 | E10: 127.77 | F10: 7302.06 | G10: OK
A11: 1.2.1 | B11: PLATIBANDA - REMOÇÃO DE CHAPAS E PERFIS DE DRYWALL, DE FORMA MANUAL, SEM REAPROVEITAMENTO. AF_12/2017 | C11: M2 | D11: 585.23 | E11: 7.41 | F11: 4336.55 | G11: OK
A12: 1.2.2 | B12: FORRO - REMOÇÃO DE FORROS DE DRYWALL, PVC E FIBROMINERAL, DE FORMA MANUAL, SEM REAPROVEITAMENTO. AF_12/2017 | C12: M2 | D12: 952 | E12: 1.6 | F12: 1523.2 | G12: OK
A13: 1.4.1 | B13: BLOCO A - PLATIBANDA EM CHAPA DE AÇO ESPESSURA 2,00mm, H=1600mm, DOBRA CARTOLA: 30X20X970mm, COM METALON DIM. 50X20X0,97mm NA FACE INFERIOR PARA ARREMATE COM O FORRO, FUNDO ANTICORROSIVO EM PRIMER EPÓXI NAS DUAS FACES | C13: M2 | D13: 121.45 | E13: 374.22 | F13: 45449.02 | G13: ANALISAR TEXTO
A14: 1.4.2 | B14: PASSARELA ENTRE BLOCO A E B PLATIBANDA EM CHAPA DE AÇO ESPESSURA 2,00mm, H=1600mm, DOBRA CARTOLA: 30X20X970mm, COM METALON DIM. 50X20X0,97mm NA FACE INFERIOR PARA ARREMATE COM O FORRO, FUNDO ANTICORROSIVO EM PRIMER EPÓXI NAS DUAS FACES | C14: M2 | D14: 17.6 | E14: 374.22 | F14: 6586.27 | G14: ANALISAR TEXTO
A15: 1.4.3 | B15: BLOCO B - PLATIBANDA EM CHAPA DE AÇO ESPESSURA 2,00mm, H=1600mm, DOBRA CARTOLA: 30X20X970mm, COM METALON DIM. 50X20X0,97mm NA FACE INFERIOR PARA ARREMATE COM O FORRO, FUNDO ANTICORROSIVO EM PRIMER EPÓXI NAS DUAS FACES | C15: M2 | D15: 204.6 | E15: 374.22 | F15: 76565.41 | G15: ANALISAR TEXTO
A16: 1.4.4 | B16: PASSARELA ENTRE BLOCO B E C PLATIBANDA EM CHAPA DE AÇO ESPESSURA 2,00mm, H=1600mm, DOBRA CARTOLA: 30X20X970mm, COM METALON DIM. 50X20X0,97mm NA FACE INFERIOR PARA ARREMATE COM O FORRO, FUNDO ANTICORROSIVO EM PRIMER EPÓXI NAS DUAS FACES | C16: M2 | D16: 18.8 | E16: 374.22 | F16: 7035.34 | G16: ANALISAR TEXTO
A17: 1.4.5 | B17: BLOCO C - PLATIBANDA EM CHAPA DE AÇO ESPESSURA 2,00mm, H=1600mm, DOBRA CARTOLA: 30X20X970mm, COM METALON DIM. 50X20X0,97mm NA FACE INFERIOR PARA ARREMATE COM O FORRO, FUNDO ANTICORROSIVO EM PRIMER EPÓXI NAS DUAS FACES | C17: M2 | D17: 96.24 | E17: 374.22 | F17: 36014.93 | G17: ANALISAR TEXTO
A18: 1.4.6 | B18: BLOCO D - PLATIBANDA EM CHAPA DE AÇO ESPESSURA 2,00mm, H=1600mm, DOBRA CARTOLA: 30X20X970mm, COM METALON DIM. 50X20X0,97mm NA FACE INFERIOR PARA ARREMATE COM O FORRO, FUNDO ANTICORROSIVO EM PRIMER EPÓXI NAS DUAS FACES | C18: M2 | D18: 126.54 | E18: 374.22 | F18: 47353.8 | G18: OK
A19: 1.6.1 | B19: LIMPEZA DE SUPERFÍCIE COM VASSOURA A SECO. AF_04/2019 | C19: M2 | D19: 367.32 | E19: 0.54 | F19: 198.35 | G19: OK
A20: 1.6.2 | B20: LIMPEZA DE SUPERFÍCIE COM JATO DE ALTA PRESSÃO. AF_04/2019 | C20: M2 | D20: 367.32 | E20: 2.02 | F20: 741.99 | G20: OK
A21: 1.6.3 | B21: PINTURA COM TINTA ALQUÍDICA DE FUNDO (TIPO ZARCÃO) APLICADA A ROLO OU PINCEL SOBRE SUPERFÍCIES METÁLICAS (EXCETO PERFIL) EXECUTADO EM OBRA (POR DEMÃO). AF_01/2020 | C21: M2 | D21: 367.32 | E21: 24.56 | F21: 9021.38 | G21: OK
A22: 1.6.4 | B22: IMPERMEABILIZAÇÃO DE SUPERFÍCIE COM MEMBRANA À BASE DE POLIURETANO, 2 DEMÃOS. AF_06/2018 | C22: M2 | D22: 367.32 | E22: 184.77 | F22: 67869.72 | G22: OK
A23: 1.8.1 | B23: TEXTURA ACRÍLICA, APLICAÇÃO MANUAL EM PAREDE, UMA DEMÃO. AF_09/2016 | C23: M2 | D23: 585.23 | E23: 15.64 | F23: 9153 | G23: OK
A24: 1.8.2 | B24: APLICAÇÃO MANUAL DE PINTURA COM TINTA LÁTEX ACRÍLICA EM PAREDES, DUAS DEMÃOS. AF_06/2014 | C24: M2 | D24: 585.23 | E24: 17.47 | F24: 10223.97 | G24: OK
A25: 1.8.3 | B25: PINTURA COM TINTA ALQUÍDICA DE ACABAMENTO (ESMALTE SINTÉTICO ACETINADO) PULVERIZADA SOBRE SUPERFÍCIES METÁLICAS (EXCETO PERFIL) EXECUTADO EM OBRA (POR DEMÃO). AF_01/2020_P | C25: M2 | D25: 585.23 | E25: 25.07 | F25: 14671.72 | G25: OK
A26: 1.3.1 | B26: BLOCO A - FORRO EM RÉGUAS DE PVC, LISO, 25CM, JUNTASECA, PARA AMBIENTES RESIDENCIAIS, INCLUSIVE ESTRUTURA DE FIXAÇÃO | C26: M² | D26: 178 | E26: 108.96 | F26: 19394.88 | G26: ANALISAR TEXTO
A27: 1.3.2 | B27: BLOCO B - FORRO EM RÉGUAS DE PVC, LISO, 25CM, JUNTASECA, PARA AMBIENTES RESIDENCIAIS, INCLUSIVE ESTRUTURA DE FIXAÇÃO | C27: M² | D27: 362 | E27: 108.96 | F27: 39443.52 | G27: ANALISAR TEXTO
A28: 1.3.3 | B28: BLOCO C - FORRO EM RÉGUAS DE PVC, LISO, 25CM, JUNTASECA, PARA AMBIENTES RESIDENCIAIS, INCLUSIVE ESTRUTURA DE FIXAÇÃO | C28: M² | D28: 251 | E28: 108.96 | F28: 27348.96 | G28: ANALISAR TEXTO
A29: 1.3.4 | B29: BLOCO D - FORRO EM RÉGUAS DE PVC, LISO, 25CM, JUNTASECA, PARA AMBIENTES RESIDENCIAIS, INCLUSIVE ESTRUTURA DE FIXAÇÃO | C29: M² | D29: 161 | E29: 108.96 | F29: 17542.56 | G29: OK
A30: 1.1.2 | B30: PLACA DE OBRA (PARA CONSTRUCAO CIVIL) EM CHAPA GALVANIZADA *N. 22*, ADESIVADA, DE *2,4 X 1,2* M (SEM POSTES PARA FIXACAO) | C30: M2 | D30: 3.13 | E30: 544.46 | F30: 1704.16 | G30: OK
A31: 1.1.1 | B31: LOCACAO DE ANDAIME METALICO TIPO FACHADEIRO, LARGURA DE 1,20 M, ALTURA POR PECA DE 2,0 M, INCLUINDO SAPATAS E ITENS NECESSARIOS A INSTALACAO | C31: M2XMES | D31: 216 | E31: 8.64 | F31: 1866.24 | G31: OK
A32: 1.2.5 | B32: CARGA, MANOBRA E DESCARGA DE ENTULHO EM CAMINHÃO BASCULANTE 14 M³ - CARGA COM ESCAVADEIRA HIDRÁULICA (CAÇAMBA DE 0,80 M³ / 111 HP) E DESCARGA LIVRE (UNIDADE: M3). AF_07/2020 | C32: M3 | D32: 11.990394 | E32: 10.67 | F32: 127.94 | G32: OK
A33: 1.0.2 | B33: ENCARREGADO GERAL DE OBRAS COM ENCARGOS COMPLEMENTARES | C33: MES | D33: 3 | E33: 5515.46 | F33: 16546.38 | G33: OK
A34: 1.0.3 | B34: TECNICO EM SEGURANCA DO TRABALHO (MENSALISTA) | C34: MES | D34: 3 | E34: 5913.03 | F34: 17739.09 | G34: OK
A35: 1.2.4 | B35: TRANSPORTE COM CAMINHÃO CARROCERIA 9T, EM VIA URBANA PAVIMENTADA, ADICIONAL PARA DMT EXCEDENTE A 30 KM (UNIDADE: TXKM). AF_07/2020 | C35: TXKM | D35: 276.7 | E35: 1.09 | F35: 301.6 | G35: OK
A36: 1.7.1 | B36: TAXA CREA | C36: UN | D36: 1 | E36: 286.23 | F36: 286.23 | G36: OK
A37: 1.2.3 | B37: REMOÇÃO DE LUMINÁRIAS, DE FORMA MANUAL, COM REAPROVEITAMENTO. AF_12/2017 | C37: UN | D37: 180 | E37: 1.28 | F37: 230.4 | G37: OK
A38: 1.5.5 | B38: JOELHO 45 GRAUS, PVC, SERIE R, ÁGUA PLUVIAL, DN 100 MM, JUNTA ELÁSTICA, FORNECIDO E INSTALADO EM RAMAL DE ENCAMINHAMENTO. AF_06/2022 | C38: UN | D38: 71 | E38: 61.08 | F38: 4336.68 | G38: OK
A39: 1.5.6 | B39: JUNÇÃO SIMPLES DE PVC, 45 GRAUS, SÉRIE NORMAL, PARA ESGOTO PREDIAL, DN 100 MM, INSTALADA EM DRENO - FORNECIMENTO E INSTALAÇÃO. AF_07/2021 | C39: UN | D39: 20 | E39: 73.15 | F39: 1463 | G39: OK
A40: 1.5.7 | B40: JUNÇÃO SIMPLES DE PVC, 45 GRAUS, SÉRIE NORMAL, PARA ESGOTO PREDIAL, DN 100 MM, INSTALADA EM DRENO - FORNECIMENTO E INSTALAÇÃO. AF_07/2021 | C40: UN | D40: 4 | E40: 73.15 | F40: 292.6 | G40: OK
A41: 1.7.1 | B41: FORNECIMENTO E MONTAGEM DE LINHA DE VIDA HORIZONTAL EM CABO DE AÇO INOX DIÂM. 9,53 MM, PERFIL 6 X 25, INCLUSIVE ACESSÓRIOS DE FIXAÇÃO | C41: UN | D41: 1 | E41: 4488.28 | F41: 4488.28 | G41: OK
A42: 1.9.1 | B42: INSTALAÇÃO DE LUMINÁRIA TIPO CALHA, DE EMBUTIR, COM 2 LÂMPADAS TUBULARES | C42: UN | D42: 180 | E42: 11.88 | F42: 2138.4 | G42: OK
A43: 1.0 | B43: ADMINISTRAÇÃO DE OBRAS | F43: 42832.26 | G43: ANALISAR TEXTO
G44: ANALISAR TEXTO
A45: 1.1 | B45: INSTALAÇÃO DE CANTEIRO DE OBRA | F45: 4542.28 | G45: ANALISAR TEXTO
G46: ANALISAR TEXTO
A47: 1.2 | B47: DEMOLIÇÃO E REMOÇÃO DE FORRO PLATIBANDA, FORRO E LUMINÁRIA DOS BLOCOS A, B, C, D E PASSARELAS DE ACESSO ENTRE OS BLOCOS | F47: 6519.69 | G47: ANALISAR TEXTO
G48: ANALISAR TEXTO
A49: 1.3 | B49: FORRO DE PVC 25 CM DE LARGURA PARA OS BEIRAIS E ÁREAS DE CONVIVÊNCIA | F49: 118833.93 | G49: ANALISAR TEXTO
G50: ANALISAR TEXTO
A51: 1.4 | B51: EXECUÇÃO DE PLATIBANDA DOS BLOCOS A, B, C, D E LATERAIS DAS PASSARELAS DE ACESSO ENTRE OS BLOCOS | F51: 219004.77 | G51: ANALISAR TEXTO
G52: ANALISAR TEXTO
A53: 1.5 | B53: ABERTURA DE CALHA E DESCIDAS VERTICAIS DOS BLOCO A, B, C E D | F53: 36735.68 | G53: ANALISAR TEXTO
G54: ANALISAR TEXTO
A55: 1.6 | B55: MANUTENÇÃO/IMPERMEABILIZAÇÃO DE CALHAS DOS BLOCOS A, B, C E D | F55: 77831.44 | G55: ANALISAR TEXTO
G56: ANALISAR TEXTO
A57: 1.7 | B57: SERVIÇOS COMPLEMENTARES | F57: 4488.28 | G57: ANALISAR TEXTO
G58: ANALISAR TEXTO
A59: 1.8 | B59: PINTURA | F59: 34048.69 | G59: ANALISAR TEXTO
G60: ANALISAR TEXTO
A61: 1.9 | B61: ELÉTRICA | F61: 2138.4 | G61: ANALISAR TEXTO
G62: ANALISAR TEXTO
A63: 1.10 | B63: LIMPEZA CONTÍNUA DA OBRA | F63: 523.2 | G63: ANALISAR TEXTO

Sheet PLANILHA ORÇAMENTÁRIA
A1: PLANILHA ORÇAMENTARIA | D1: SPN-FF-003 | L1: C:\Users\alexandre.seba\Desktop\EM TELA\BBU - 2022\PLANILHA ORÇAMENTÁRIA\SINAPI 07-2022.xlsx
D3: Folha: 1 de 1 | E3: Revisão: 02 | F3: Data: 07/10/19
A5: SENAI - SERVIÇO NACIONAL DE APRENDIZAGEM INDUSTRIAL - DR/MT
A6: OBRA: CONTRATAÇÃO DE EMPRESA DE ENGENHARIA PARA A EXECUÇÃO DE REFORMA DE PLATIBANDA, FORRO E IMPERMEABILIZAÇÃO E ABERTURA DE PONTOS DE DRENO DE CALHA DOS BLOCOS A, B, C E D DA UNIDADE DO SENAI BARRA DO BUGRES.
A7: UNIDADE OPERACIONAL: SENAI BARRA DO BUGRES
A8: ENDEREÇO: AV. TABATINGA ESQUINA COM RUA PLANALTO CIDADE: BARRA DO BUGRES-MT
A9: CONSTRUTORA: | H9: BDI DIFERENCIADO: | I9: =BDI_EQUI -> 0.1461
A10: RESPONSÁVEL TÉCNICO: | D10: REF.: | E10: =LEFT(RIGHT(CAMINHO_DO_BD,19),14) -> SINAPI 07-2022 | H10: BDI: | I10: =BDI -> 0.2235 | J10: SINAPI REF. | K10: =LEFT(RIGHT(CAMINHO_DO_BD,12),7) -> 07-2022
A12: ITEM | B12: DESCRIÇÃO | C12: UNID. | D12: QUANT. | E12: Valor UNIT. (R$) | F12: Valor Total (R$) | H12: CÓDIGO | I12: ORIGEM/OBSERVAÇÃO | J12: Valor Unit. (R$) SEM BDI | K12: Valor Unit. (R$) C/ BDI | M12: TIPO DO ITEM | N12: TIPO DO BDI
A14: 1.0 | B14: ADMINISTRAÇÃO DE OBRAS | F14: =SUBTOTAL(9,F15:F19) -> 42832.26
A15: 1.0.1 | B15: ENGENHEIRO CIVIL DE OBRA JUNIOR COM ENCARGOS COMPLEMENTARES CONSIDERANDO 02H/DIA X 03 DIAS NA SEMANA X 4 SEMANAS X 3 MESES | C15: H | D15: 72 | E15: =K15 -> 114.73 | F15: =ROUND(D15*E15,2) -> 8260.56 | H15: 90777 | I15: =IF(M15="COMPOSIÇÃO",LEFT(RIGHT(CAMINHO_DO_BD,19),14),IF(M15="INSUMO","INSUMO " & LEFT(RIGHT(CAMINHO_DO_BD,19),14),IF(M15="COMPOSIÇÃO PRÓPRIA","COMPOSIÇÃO PRÓPRIA COM BASE NA " & LEFT(RIGHT(CAMINHO_DO_BD,19),14),"PREÇO MÉDIO DE ORÇAMENTOS"))) -> SINAPI 07-2022 | J15: 93.77 | K15: =ROUND(J15*(1+BDI),2) -> 114.73 | M15: COMPOSIÇÃO | N15: BDI DE OBRA
A16: 1.0.2 | B16: ENCARREGADO GERAL DE OBRAS COM ENCARGOS COMPLEMENTARES | C16: MES | D16: 3 | E16: =K16 -> 5515.46 | F16: =ROUND(D16*E16,2) -> 16546.38 | H16: 93572 | I16: =IF(M16="COMPOSIÇÃO",LEFT(RIGHT(CAMINHO_DO_BD,19),14),IF(M16="INSUMO","INSUMO " & LEFT(RIGHT(CAMINHO_DO_BD,19),14),IF(M16="COMPOSIÇÃO PRÓPRIA","COMPOSIÇÃO PRÓPRIA COM BASE NA " & LEFT(RIGHT(CAMINHO_DO_BD,19),14),"PREÇO MÉDIO DE ORÇAMENTOS"))) -> SINAPI 07-2022 | J16: 4507.94 | K16: =ROUND(J16*(1+BDI),2) -> 5515.46 | M16: COMPOSIÇÃO | N16: BDI DE OBRA
A17: 1.0.3 | B17: TECNICO EM SEGURANCA DO TRABALHO (MENSALISTA) | C17: MES | D17: 3 | E17: =K17 -> 5913.03 | F17: =ROUND(D17*E17,2) -> 17739.09 | H17: C_CIV0303 | I17: =IF(M17="COMPOSIÇÃO",LEFT(RIGHT(CAMINHO_DO_BD,19),14),IF(M17="INSUMO","INSUMO " & LEFT(RIGHT(CAMINHO_DO_BD,19),14),IF(M17="COMPOSIÇÃO PRÓPRIA","COMPOSIÇÃO PRÓPRIA COM BASE NA " & LEFT(RIGHT(CAMINHO_DO_BD,19),14),"PREÇO MÉDIO DE ORÇAMENTOS"))) -> COMPOSIÇÃO PRÓPRIA COM BASE NA SINAPI 07-2022 | J17: 4832.88 | K17: =ROUND(J17*(1+BDI),2) -> 5913.03 | M17: COMPOSIÇÃO PRÓPRIA | N17: BDI DE OBRA
A18: 1.0.4 | B18: ANOTAÇÃO DE RESPONSABILIDADE TECNICA | C18: UN | D18: 1 | E18: 286.23 | F18: =ROUND(D18*E18,2) -> 286.23 | H18: C_CIV0304 | I18: =IF(M18="COMPOSIÇÃO",LEFT(RIGHT(CAMINHO_DO_BD,19),14),IF(M18="INSUMO","INSUMO " & LEFT(RIGHT(CAMINHO_DO_BD,19),14),IF(M18="COMPOSIÇÃO PRÓPRIA","COMPOSIÇÃO PRÓPRIA COM BASE NA " & LEFT(RIGHT(CAMINHO_DO_BD,19),14),"PREÇO MÉDIO DE ORÇAMENTOS"))) -> COMPOSIÇÃO PRÓPRIA COM BASE NA SINAPI 07-2022 | J18: 233.94 | K18: =ROUND(J18*(1+BDI),2) -> 286.23 | M18: COMPOSIÇÃO PRÓPRIA | N18: BDI DE OBRA
A20: 1.1 | B20: INSTALAÇÃO DE CANTEIRO DE OBRA | F20: =SUBTOTAL(9,F21:F24) -> 4542.28
A21: 1.1.1 | B21: LOCACAO DE ANDAIME METALICO TIPO FACHADEIRO, LARGURA DE 1,20 M, ALTURA POR PECA DE 2,0 M, INCLUINDO SAPATAS E ITENS NECESSARIOS A INSTALACAO | C21: M2XMES | D21: 216 | E21: =K21 -> 8.64 | F21: =ROUND(D21*E21,2) -> 1866.24 | H21: 20193 | I21: =IF(M21="COMPOSIÇÃO",LEFT(RIGHT(CAMINHO_DO_BD,19),14),IF(M21="INSUMO","INSUMO " & LEFT(RIGHT(CAMINHO_DO_BD,19),14),IF(M21="COMPOSIÇÃO PRÓPRIA","COMPOSIÇÃO PRÓPRIA COM BASE NA " & LEFT(RIGHT(CAMINHO_DO_BD,19),14),"PREÇO MÉDIO DE ORÇAMENTOS"))) -> INSUMO SINAPI 07-2022 | J21: 7.06 | K21: =ROUND(J21*(1+BDI),2) -> 8.64 | M21: INSUMO | N21: BDI DE OBRA
A22: 1.1.2 | B22: PLACA DE OBRA (PARA CONSTRUCAO CIVIL) EM CHAPA GALVANIZADA *N. 22*, ADESIVADA, DE *2,4 X 1,2* M (SEM POSTES PARA FIXACAO) | C22: M2 | D22: 3.13 | E22: =K22 -> 544.46 | F22: =ROUND(D22*E22,2) -> 1704.16 | H22: 4813 | I22: =IF(M22="COMPOSIÇÃO",LEFT(RIGHT(CAMINHO_DO_BD,19),14),IF(M22="INSUMO","INSUMO " & LEFT(RIGHT(CAMINHO_DO_BD,19),14),IF(M22="COMPOSIÇÃO PRÓPRIA","COMPOSIÇÃO PRÓPRIA COM BASE NA " & LEFT(RIGHT(CAMINHO_DO_BD,19),14),"PREÇO MÉDIO DE ORÇAMENTOS"))) -> INSUMO SINAPI 07-2022 | J22: 445 | K22: =ROUND(J22*(1+BDI),2) -> 544.46 | M22: INSUMO | N22: BDI DE OBRA
A23: 1.1.3 | B23: GUARDA-CORPO FIXADO EM FÔRMA DE MADEIRA COM TRAVESSÕES EM MADEIRA PREGADA E FECHAMENTO EM TELA DE POLIPROPILENO PARA EDIFICAÇÕES COM ATÉ 2 PAVIMENTOS. AF_11/2017 | C23: M | D23: 13 | E23: =K23 -> 74.76 | F23: =ROUND(D23*E23,2) -> 971.88 | H23: 97010 | I23: =IF(M23="COMPOSIÇÃO",LEFT(RIGHT(CAMINHO_DO_BD,19),14),IF(M23="INSUMO","INSUMO " & LEFT(RIGHT(CAMINHO_DO_BD,19),14),IF(M23="COMPOSIÇÃO PRÓPRIA","COMPOSIÇÃO PRÓPRIA COM BASE NA " & LEFT(RIGHT(CAMINHO_DO_BD,19),14),"PREÇO MÉDIO DE ORÇAMENTOS"))) -> SINAPI 07-2022 | J23: 61.1 | K23: =ROUND(J23*(1+BDI),2) -> 74.76 | M23: COMPOSIÇÃO | N23: BDI DE OBRA
A25: 1.2 | B25: DEMOLIÇÃO E REMOÇÃO DE FORRO PLATIBANDA, FORRO E LUMINÁRIA DOS BLOCOS A, B, C, D E PASSARELAS DE ACESSO ENTRE OS BLOCOS | F25: =SUBTOTAL(9,F26:F31) -> 6519.68
A26: 1.2.1 | B26: PLATIBANDA - REMOÇÃO DE CHAPAS E PERFIS DE DRYWALL, DE FORMA MANUAL, SEM REAPROVEITAMENTO. AF_12/2017 | C26: M2 | D26: 585.23 | E26: =K26 -> 7.41 | F26: =ROUND(D26*E26,2) -> 4336.55 | H26: 97638 | I26: =IF(M26="COMPOSIÇÃO",LEFT(RIGHT(CAMINHO_DO_BD,19),14),IF(M26="INSUMO","INSUMO " & LEFT(RIGHT(CAMINHO_DO_BD,19),14),IF(M26="COMPOSIÇÃO PRÓPRIA","COMPOSIÇÃO PRÓPRIA COM BASE NA " & LEFT(RIGHT(CAMINHO_DO_BD,19),14),"PREÇO MÉDIO DE ORÇAMENTOS"))) -> SINAPI 07-2022 | J26: 6.06 | K26: =ROUND(J26*(1+BDI),2) -> 7.41 | M26: COMPOSIÇÃO | N26: BDI DE OBRA
A27: 1.2.2 | B27: FORRO - REMOÇÃO DE FORROS DE DRYWALL, PVC E FIBROMINERAL, DE FORMA MANUAL, SEM REAPROVEITAMENTO. AF_12/2017 | C27: M2 | D27: 952 | E27: =K27 -> 1.6 | F27: =ROUND(D27*E27,2) -> 1523.2 | H27: 97640 | I27: =IF(M27="COMPOSIÇÃO",LEFT(RIGHT(CAMINHO_DO_BD,19),14),IF(M27="INSUMO","INSUMO " & LEFT(RIGHT(CAMINHO_DO_BD,19),14),IF(M27="COMPOSIÇÃO PRÓPRIA","COMPOSIÇÃO PRÓPRIA COM BASE NA " & LEFT(RIGHT(CAMINHO_DO_BD,19),14),"PREÇO MÉDIO DE ORÇAMENTOS"))) -> SINAPI 07-2022 | J27: 1.31 | K27: =ROUND(J27*(1+BDI),2) -> 1.6 | M27: COMPOSIÇÃO | N27: BDI DE OBRA
A28: 1.2.3 | B28: REMOÇÃO DE LUMINÁRIAS, DE FORMA MANUAL, COM REAPROVEITAMENTO. AF_12/2017 | C28: UN | D28: 180 | E28: =K28 -> 1.28 | F28: =ROUND(D28*E28,2) -> 230.4 | H28: 97665 | I28: =IF(M28="COMPOSIÇÃO",LEFT(RIGHT(CAMINHO_DO_BD,19),14),IF(M28="INSUMO","INSUMO " & LEFT(RIGHT(CAMINHO_DO_BD,19),14),IF(M28="COMPOSIÇÃO PRÓPRIA","COMPOSIÇÃO PRÓPRIA COM BASE NA " & LEFT(RIGHT(CAMINHO_DO_BD,19),14),"PREÇO MÉDIO DE ORÇAMENTOS"))) -> SINAPI 07-2022 | J28: 1.05 | K28: =ROUND(J28*(1+BDI),2) -> 1.28 | M28: COMPOSIÇÃO | N28: BDI DE OBRA
A29: 1.2.4 | B29: TRANSPORTE COM CAMINHÃO CARROCERIA 9T, EM VIA URBANA PAVIMENTADA, ADICIONAL PARA DMT EXCEDENTE A 30 KM (UNIDADE: TXKM). AF_07/2020 | C29: TXKM | D29: 276.7 | E29: =K29 -> 1.09 | F29: =ROUND(D29*E29,2) -> 301.6 | H29: 100948 | I29: =IF(M29="COMPOSIÇÃO",LEFT(RIGHT(CAMINHO_DO_BD,19),14),IF(M29="INSUMO","INSUMO " & LEFT(RIGHT(CAMINHO_DO_BD,19),14),IF(M29="COMPOSIÇÃO PRÓPRIA","COMPOSIÇÃO PRÓPRIA COM BASE NA " & LEFT(RIGHT(CAMINHO_DO_BD,19),14),"PREÇO MÉDIO DE ORÇAMENTOS"))) -> SINAPI 07-2022 | J29: 0.89 | K29: =ROUND(J29*(1+BDI),2) -> 1.09 | M29: COMPOSIÇÃO | N29: BDI DE OBRA
A30: 1.2.5 | B30: CARGA, MANOBRA E DESCARGA DE ENTULHO EM CAMINHÃO BASCULANTE 14 M³ - CARGA COM ESCAVADEIRA HIDRÁULICA (CAÇAMBA DE 0,80 M³ / 111 HP) E DESCARGA LIVRE (UNIDADE: M3). AF_07/2020 | C30: M3 | D30: 11.99 | E30: =K30 -> 10.67 | F30: =ROUND(D30*E30,2) -> 127.93 | H30: 100983 | I30: =IF(M30="COMPOSIÇÃO",LEFT(RIGHT(CAMINHO_DO_BD,19),14),IF(M30="INSUMO","INSUMO " & LEFT(RIGHT(CAMINHO_DO_BD,19),14),IF(M30="COMPOSIÇÃO PRÓPRIA","COMPOSIÇÃO PRÓPRIA COM BASE NA " & LEFT(RIGHT(CAMINHO_DO_BD,19),14),"PREÇO MÉDIO DE ORÇAMENTOS"))) -> SINAPI 07-2022 | J30: 8.72 | K30: =ROUND(J30*(1+BDI),2) -> 10.67 | M30: COMPOSIÇÃO | N30: BDI DE OBRA
A32: 1.3 | B32: FORRO DE PVC 25 CM DE LARGURA PARA OS BEIRAIS E ÁREAS DE CONVIVÊNCIA | F32: =SUBTOTAL(9,F33:F38) -> 118833.93
A33: 1.3.1 | B33: BLOCO A - FORRO EM RÉGUAS DE PVC, LISO, 25CM, JUNTASECA, PARA AMBIENTES RESIDENCIAIS, INCLUSIVE ESTRUTURA DE FIXAÇÃO | C33: M² | D33: 178 | E33: =K33 -> 108.96 | F33: =ROUND(D33*E33,2) -> 19394.88 | H33: C_CIV0295 | I33: =IF(M33="COMPOSIÇÃO",LEFT(RIGHT(CAMINHO_DO_BD,19),14),IF(M33="INSUMO","INSUMO " & LEFT(RIGHT(CAMINHO_DO_BD,19),14),IF(M33="COMPOSIÇÃO PRÓPRIA","COMPOSIÇÃO PRÓPRIA COM BASE NA " & LEFT(RIGHT(CAMINHO_DO_BD,19),14),"PREÇO MÉDIO DE ORÇAMENTOS"))) -> COMPOSIÇÃO PRÓPRIA COM BASE NA SINAPI 07-2022 | J33: 89.06 | K33: =ROUND(J33*(1+BDI),2) -> 108.96 | M33: COMPOSIÇÃO PRÓPRIA | N33: BDI DE OBRA
A34: 1.3.2 | B34: BLOCO B - FORRO EM RÉGUAS DE PVC, LISO, 25CM, JUNTASECA, PARA AMBIENTES RESIDENCIAIS, INCLUSIVE ESTRUTURA DE FIXAÇÃO | C34: M² | D34: 362 | E34: =K34 -> 108.96 | F34: =ROUND(D34*E34,2) -> 39443.52 | H34: C_CIV0295 | I34: =IF(M34="COMPOSIÇÃO",LEFT(RIGHT(CAMINHO_DO_BD,19),14),IF(M34="INSUMO","INSUMO " & LEFT(RIGHT(CAMINHO_DO_BD,19),14),IF(M34="COMPOSIÇÃO PRÓPRIA","COMPOSIÇÃO PRÓPRIA COM BASE NA " & LEFT(RIGHT(CAMINHO_DO_BD,19),14),"PREÇO MÉDIO DE ORÇAMENTOS"))) -> COMPOSIÇÃO PRÓPRIA COM BASE NA SINAPI 07-2022 | J34: 89.06 | K34: =ROUND(J34*(1+BDI),2) -> 108.96 | M34: COMPOSIÇÃO PRÓPRIA | N34: BDI DE OBRA
A35: 1.3.3 | B35: BLOCO C - FORRO EM RÉGUAS DE PVC, LISO, 25CM, JUNTASECA, PARA AMBIENTES RESIDENCIAIS, INCLUSIVE ESTRUTURA DE FIXAÇÃO | C35: M² | D35: 251 | E35: =K35 -> 108.96 | F35: =ROUND(D35*E35,2) -> 27348.96 | H35: C_CIV0295 | I35: =IF(M35="COMPOSIÇÃO",LEFT(RIGHT(CAMINHO_DO_BD,19),14),IF(M35="INSUMO","INSUMO " & LEFT(RIGHT(CAMINHO_DO_BD,19),14),IF(M35="COMPOSIÇÃO PRÓPRIA","COMPOSIÇÃO PRÓPRIA COM BASE NA " & LEFT(RIGHT(CAMINHO_DO_BD,19),14),"PREÇO MÉDIO DE ORÇAMENTOS"))) -> COMPOSIÇÃO PRÓPRIA COM BASE NA SINAPI 07-2022 | J35: 89.06 | K35: =ROUND(J35*(1+BDI),2) -> 108.96 | M35: COMPOSIÇÃO PRÓPRIA | N35: BDI DE OBRA
A36: 1.3.4 | B36: BLOCO D - FORRO EM RÉGUAS DE PVC, LISO, 25CM, JUNTASECA, PARA AMBIENTES RESIDENCIAIS, INCLUSIVE ESTRUTURA DE FIXAÇÃO | C36: M² | D36: 161 | E36: =K36 -> 108.96 | F36: =ROUND(D36*E36,2) -> 17542.56 | H36: C_CIV0295 | I36: =IF(M36="COMPOSIÇÃO",LEFT(RIGHT(CAMINHO_DO_BD,19),14),IF(M36="INSUMO","INSUMO " & LEFT(RIGHT(CAMINHO_DO_BD,19),14),IF(M36="COMPOSIÇÃO PRÓPRIA","COMPOSIÇÃO PRÓPRIA COM BASE NA " & LEFT(RIGHT(CAMINHO_DO_BD,19),14),"PREÇO MÉDIO DE ORÇAMENTOS"))) -> COMPOSIÇÃO PRÓPRIA COM BASE NA SINAPI 07-2022 | J36: 89.06 | K36: =ROUND(J36*(1+BDI),2) -> 108.96 | M36: COMPOSIÇÃO PRÓPRIA | N36: BDI DE OBRA
A37: 1.3.5 | B37: ACABAMENTOS PARA FORRO (RODA-FORRO EM PERFIL METÁLICO E PLÁSTICO). AF_05/2017 TODOS OS BLOCOS | C37: M | D37: 1045.26 | E37: =K37 -> 14.45 | F37: =ROUND(D37*E37,2) -> 15104.01 | H37: 96121 | I37: =IF(M37="COMPOSIÇÃO",LEFT(RIGHT(CAMINHO_DO_BD,19),14),IF(M37="INSUMO","INSUMO " & LEFT(RIGHT(CAMINHO_DO_BD,19),14),IF(M37="COMPOSIÇÃO PRÓPRIA","COMPOSIÇÃO PRÓPRIA COM BASE NA " & LEFT(RIGHT(CAMINHO_DO_BD,19),14),"PREÇO MÉDIO DE ORÇAMENTOS"))) -> SINAPI 07-2022 | J37: 11.81 | K37: =ROUND(J37*(1+BDI),2) -> 14.45 | M37: COMPOSIÇÃO | N37: BDI DE OBRA
A39: 1.4 | B39: EXECUÇÃO DE PLATIBANDA DOS BLOCOS A, B, C, D E LATERAIS DAS PASSARELAS DE ACESSO ENTRE OS BLOCOS | F39: =SUBTOTAL(9,F40:F46) -> 219004.77
A40: 1.4.1 | B40: BLOCO A - PLATIBANDA EM CHAPA DE AÇO ESPESSURA 2,00mm, H=1600mm, DOBRA CARTOLA: 30X20X970mm, COM METALON DIM. 50X20X0,97mm NA FACE INFERIOR PARA ARREMATE COM O FORRO, FUNDO ANTICORROSIVO EM PRIMER EPÓXI NAS DUAS FACES | C40: M2 | D40: 121.45 | E40: =K40 -> 374.22 | F40: =ROUND(D40*E40,2) -> 45449.02 | H40: C_CIV0222 | I40: =IF(M40="COMPOSIÇÃO",LEFT(RIGHT(CAMINHO_DO_BD,19),14),IF(M40="INSUMO","INSUMO " & LEFT(RIGHT(CAMINHO_DO_BD,19),14),IF(M40="COMPOSIÇÃO PRÓPRIA","COMPOSIÇÃO PRÓPRIA COM BASE NA " & LEFT(RIGHT(CAMINHO_DO_BD,19),14),"PREÇO MÉDIO DE ORÇAMENTOS"))) -> COMPOSIÇÃO PRÓPRIA COM BASE NA SINAPI 07-2022 | J40: 305.86 | K40: =ROUND(J40*(1+BDI),2) -> 374.22 | M40: COMPOSIÇÃO PRÓPRIA | N40: BDI DE OBRA
A41: 1.4.2 | B41: PASSARELA ENTRE BLOCO A E B PLATIBANDA EM CHAPA DE AÇO ESPESSURA 2,00mm, H=1600mm, DOBRA CARTOLA: 30X20X970mm, COM METALON DIM. 50X20X0,97mm NA FACE INFERIOR PARA ARREMATE COM O FORRO, FUNDO ANTICORROSIVO EM PRIMER EPÓXI NAS DUAS FACES | C41: M2 | D41: 17.6 | E41: =K41 -> 374.22 | F41: =ROUND(D41*E41,2) -> 6586.27 | H41: C_CIV0222 | I41: COMPOSIÇÃO PRÓPRIA COM BASE NA SINAPI 07-2022 | J41: 305.86 | K41: 374.22 | M41: COMPOSIÇÃO PRÓPRIA | N41: BDI DE OBRA
A42: 1.4.3 | B42: BLOCO B - PLATIBANDA EM CHAPA DE AÇO ESPESSURA 2,00mm, H=1600mm, DOBRA CARTOLA: 30X20X970mm, COM METALON DIM. 50X20X0,97mm NA FACE INFERIOR PARA ARREMATE COM O FORRO, FUNDO ANTICORROSIVO EM PRIMER EPÓXI NAS DUAS FACES | C42: M2 | D42: 204.6 | E42: =K42 -> 374.22 | F42: =ROUND(D42*E42,2) -> 76565.41 | H42: C_CIV0222 | I42: COMPOSIÇÃO PRÓPRIA COM BASE NA SINAPI 07-2022 | J42: 305.86 | K42: 374.22 | M42: COMPOSIÇÃO PRÓPRIA | N42: BDI DE OBRA
A43: 1.4.4 | B43: PASSARELA ENTRE BLOCO B E C PLATIBANDA EM CHAPA DE AÇO ESPESSURA 2,00mm, H=1600mm, DOBRA CARTOLA: 30X20X970mm, COM METALON DIM. 50X20X0,97mm NA FACE INFERIOR PARA ARREMATE COM O FORRO, FUNDO ANTICORROSIVO EM PRIMER EPÓXI NAS DUAS FACES | C43: M2 | D43: 18.8 | E43: 374.22 | F43: 7035.34 | H43: C_CIV0222 | I43: COMPOSIÇÃO PRÓPRIA COM BASE NA SINAPI 07-2022 | J43: 305.86 | K43: 374.22 | M43: COMPOSIÇÃO PRÓPRIA | N43: BDI DE OBRA
A44: 1.4.5 | B44: BLOCO C - PLATIBANDA EM CHAPA DE AÇO ESPESSURA 2,00mm, H=1600mm, DOBRA CARTOLA: 30X20X970mm, COM METALON DIM. 50X20X0,97mm NA FACE INFERIOR PARA ARREMATE COM O FORRO, FUNDO ANTICORROSIVO EM PRIMER EPÓXI NAS DUAS FACES | C44: M2 | D44: 96.24 | E44: =K44 -> 374.22 | F44: =ROUND(D44*E44,2) -> 36014.93 | H44: C_CIV0222 | I44: COMPOSIÇÃO PRÓPRIA COM BASE NA SINAPI 07-2022 | J44: 305.86 | K44: 374.22 | M44: COMPOSIÇÃO PRÓPRIA | N44: BDI DE OBRA
A45: 1.4.6 | B45: BLOCO D - PLATIBANDA EM CHAPA DE AÇO ESPESSURA 2,00mm, H=1600mm, DOBRA CARTOLA: 30X20X970mm, COM METALON DIM. 50X20X0,97mm NA FACE INFERIOR PARA ARREMATE COM O FORRO, FUNDO ANTICORROSIVO EM PRIMER EPÓXI NAS DUAS FACES | C45: M2 | D45: 126.54 | E45: =K45 -> 374.22 | F45: =ROUND(D45*E45,2) -> 47353.8 | H45: C_CIV0222 | I45: COMPOSIÇÃO PRÓPRIA COM BASE NA SINAPI 07-2022 | J45: 305.86 | K45: 374.22 | M45: COMPOSIÇÃO PRÓPRIA | N45: BDI DE OBRA
A47: 1.5 | B47: ABERTURA DE CALHA E DESCIDAS VERTICAIS DOS BLOCO A, B, C E D | F47: =SUBTOTAL(9,F48:F56) -> 36735.68
A48: 1.5.1 | B48: TELHADISTA COM ENCARGOS COMPLEMENTARES PARA FINS DE ABERTURA DE PONTOS DE DRENOS DE CALHA. | C48: H | D48: 24 | E48: =K48 -> 26.83 | F48: =ROUND(D48*E48,2) -> 643.92 | H48: 88323 | I48: =IF(M48="COMPOSIÇÃO",LEFT(RIGHT(CAMINHO_DO_BD,19),14),IF(M48="INSUMO","INSUMO " & LEFT(RIGHT(CAMINHO_DO_BD,19),14),IF(M48="COMPOSIÇÃO PRÓPRIA","COMPOSIÇÃO PRÓPRIA COM BASE NA " & LEFT(RIGHT(CAMINHO_DO_BD,19),14),"PREÇO MÉDIO DE ORÇAMENTOS"))) -> SINAPI 07-2022 | J48: 21.93 | K48: =ROUND(J48*(1+BDI),2) -> 26.83 | M48: COMPOSIÇÃO | N48: BDI DE OBRA
A49: 1.5.2 | B49: FIXAÇÃO DE TUBOS VERTICAIS DE PPR DIÂMETROS MAIORES QUE 75 MM COM ABRAÇADEIRA METÁLICA RÍGIDA TIPO D 3", FIXADA EM PERFILADO EM ALVENARIA. AF_05/2015 | C49: M | D49: 171.53 | E49: 6.18 | F49: 1060.06 | H49: 91175 | I49: SINAPI 07-2022 | J49: 5.05 | K49: 6.18 | M49: COMPOSIÇÃO | N49: BDI DE OBRA
A50: 1.5.3 | B50: TUBO PVC, SERIE R, DN 100 MM, PARA ESGOTO OU AGUAS PLUVIAIS PREDIAIS (NBR 5688) | C50: M | D50: 114.38 | E50: =K50 -> 62.86 | F50: =ROUND(D50*E50,2) -> 7189.93 | H50: 9841 | I50: INSUMO SINAPI 07-2022 | J50: 51.38 | K50: 62.86 | M50: INSUMO | N50: BDI DE OBRA
A51: 1.5.4 | B51: TUBO PVC, SERIE R, DN 150 MM, PARA ESGOTO OU AGUAS PLUVIAIS PREDIAIS (NBR 5688) | C51: M | D51: 57.15 | E51: =K51 -> 127.77 | F51: =ROUND(D51*E51,2) -> 7302.06 | H51: 9840 | I51: INSUMO SINAPI 07-2022 | J51: 104.43 | K51: =ROUND(J51*(1+BDI),2) -> 127.77 | M51: INSUMO | N51: BDI DE OBRA
A52: 1.5.5 | B52: JOELHO 45 GRAUS, PVC, SERIE R, ÁGUA PLUVIAL, DN 100 MM, JUNTA ELÁSTICA, FORNECIDO E INSTALADO EM RAMAL DE ENCAMINHAMENTO. AF_06/2022 | C52: UN | D52: 71 | E52: 61.08 | F52: 4336.68 | H52: 89531 | I52: SINAPI 07-2022 | J52: 49.92 | K52: 61.08 | M52: COMPOSIÇÃO | N52: BDI DE OBRA
A53: 1.5.6 | B53: JUNÇÃO SIMPLES DE PVC, 45 GRAUS, SÉRIE NORMAL, PARA ESGOTO PREDIAL, DN 100 MM, INSTALADA EM DRENO - FORNECIMENTO E INSTALAÇÃO. AF_07/2021 | C53: UN | D53: 20 | E53: 73.15 | F53: 1463 | H53: 102710 | I53: SINAPI 07-2022 | J53: 59.79 | K53: 73.15 | M53: COMPOSIÇÃO | N53: BDI DE OBRA
A54: 1.5.7 | B54: JUNÇÃO SIMPLES DE PVC, 45 GRAUS, SÉRIE NORMAL, PARA ESGOTO PREDIAL, DN 100 MM, INSTALADA EM DRENO - FORNECIMENTO E INSTALAÇÃO. AF_07/2021 | C54: UN | D54: 4 | E54: =K54 -> 73.15 | F54: =ROUND(D54*E54,2) -> 292.6 | H54: 102710 | I54: SINAPI 07-2022 | J54: 59.79 | K54: 73.15 | M54: COMPOSIÇÃO | N54: BDI DE OBRA
A55: 1.5.8 | B55: CONDUTOR EM CHAPA DE CALHA DIMENSÕES 15X15 EXECUÇÃO BOCA TIPO FUNIL | C55: M | D55: 109.5 | E55: =K55 -> 131.94 | F55: =ROUND(D55*E55,2) -> 14447.43 | H55: 94228 | I55: SINAPI 07-2022 | J55: 107.84 | K55: =ROUND(J55*(1+BDI),2) -> 131.94 | M55: COMPOSIÇÃO | N55: BDI DE OBRA
A57: 1.6 | B57: MANUTENÇÃO/IMPERMEABILIZAÇÃO DE CALHAS DOS BLOCOS A, B, C E D | F57: =SUBTOTAL(9,F58:F62) -> 77831.44
A58: 1.6.1 | B58: LIMPEZA DE SUPERFÍCIE COM VASSOURA A SECO. AF_04/2019 | C58: M2 | D58: 367.32 | E58: =K58 -> 0.54 | F58: =ROUND(D58*E58,2) -> 198.35 | H58: 99802 | I58: =IF(M58="COMPOSIÇÃO",LEFT(RIGHT(CAMINHO_DO_BD,19),14),IF(M58="INSUMO","INSUMO " & LEFT(RIGHT(CAMINHO_DO_BD,19),14),IF(M58="COMPOSIÇÃO PRÓPRIA","COMPOSIÇÃO PRÓPRIA COM BASE NA " & LEFT(RIGHT(CAMINHO_DO_BD,19),14),"PREÇO MÉDIO DE ORÇAMENTOS"))) -> SINAPI 07-2022 | J58: 0.44 | K58: =ROUND(J58*(1+BDI),2) -> 0.54 | M58: COMPOSIÇÃO | N58: BDI DE OBRA
A59: 1.6.2 | B59: LIMPEZA DE SUPERFÍCIE COM JATO DE ALTA PRESSÃO. AF_04/2019 | C59: M2 | D59: 367.32 | E59: =K59 -> 2.02 | F59: =ROUND(D59*E59,2) -> 741.99 | H59: 99814 | I59: =IF(M59="COMPOSIÇÃO",LEFT(RIGHT(CAMINHO_DO_BD,19),14),IF(M59="INSUMO","INSUMO " & LEFT(RIGHT(CAMINHO_DO_BD,19),14),IF(M59="COMPOSIÇÃO PRÓPRIA","COMPOSIÇÃO PRÓPRIA COM BASE NA " & LEFT(RIGHT(CAMINHO_DO_BD,19),14),"PREÇO MÉDIO DE ORÇAMENTOS"))) -> SINAPI 07-2022 | J59: 1.65 | K59: =ROUND(J59*(1+BDI),2) -> 2.02 | M59: COMPOSIÇÃO | N59: BDI DE OBRA
A60: 1.6.3 | B60: PINTURA COM TINTA ALQUÍDICA DE FUNDO (TIPO ZARCÃO) APLICADA A ROLO OU PINCEL SOBRE SUPERFÍCIES METÁLICAS (EXCETO PERFIL) EXECUTADO EM OBRA (POR DEMÃO). AF_01/2020 | C60: M2 | D60: 367.32 | E60: =K60 -> 24.56 | F60: =ROUND(D60*E60,2) -> 9021.38 | H60: 100722 | I60: =IF(M60="COMPOSIÇÃO",LEFT(RIGHT(CAMINHO_DO_BD,19),14),IF(M60="INSUMO","INSUMO " & LEFT(RIGHT(CAMINHO_DO_BD,19),14),IF(M60="COMPOSIÇÃO PRÓPRIA","COMPOSIÇÃO PRÓPRIA COM BASE NA " & LEFT(RIGHT(CAMINHO_DO_BD,19),14),"PREÇO MÉDIO DE ORÇAMENTOS"))) -> SINAPI 07-2022 | J60: 20.07 | K60: =ROUND(J60*(1+BDI),2) -> 24.56 | M60: COMPOSIÇÃO | N60: BDI DE OBRA
A61: 1.6.4 | B61: IMPERMEABILIZAÇÃO DE SUPERFÍCIE COM MEMBRANA À BASE DE POLIURETANO, 2 DEMÃOS. AF_06/2018 | C61: M2 | D61: 367.32 | E61: =K61 -> 184.77 | F61: =ROUND(D61*E61,2) -> 67869.72 | H61: 98553 | I61: =IF(M61="COMPOSIÇÃO",LEFT(RIGHT(CAMINHO_DO_BD,19),14),IF(M61="INSUMO","INSUMO " & LEFT(RIGHT(CAMINHO_DO_BD,19),14),IF(M61="COMPOSIÇÃO PRÓPRIA","COMPOSIÇÃO PRÓPRIA COM BASE NA " & LEFT(RIGHT(CAMINHO_DO_BD,19),14),"PREÇO MÉDIO DE ORÇAMENTOS"))) -> SINAPI 07-2022 | J61: 151.02 | K61: =ROUND(J61*(1+BDI),2) -> 184.77 | M61: COMPOSIÇÃO | N61: BDI DE OBRA
A63: 1.7 | B63: SERVIÇOS COMPLEMENTARES | F63: =SUBTOTAL(9,F64:F65) -> 4488.28
A64: 1.7.1 | B64: FORNECIMENTO E MONTAGEM DE LINHA DE VIDA HORIZONTAL EM CABO DE AÇO INOX DIÂM. 9,53 MM, PERFIL 6 X 25, INCLUSIVE ACESSÓRIOS DE FIXAÇÃO | C64: UN | D64: 1 | E64: =K64 -> 4488.28 | F64: =ROUND(D64*E64,2) -> 4488.28 | H64: C_CIV0302 | I64: =IF(M64="COMPOSIÇÃO",LEFT(RIGHT(CAMINHO_DO_BD,19),14),IF(M64="INSUMO","INSUMO " & LEFT(RIGHT(CAMINHO_DO_BD,19),14),IF(M64="COMPOSIÇÃO PRÓPRIA","COMPOSIÇÃO PRÓPRIA COM BASE NA " & LEFT(RIGHT(CAMINHO_DO_BD,19),14),"PREÇO MÉDIO DE ORÇAMENTOS"))) -> COMPOSIÇÃO PRÓPRIA COM BASE NA SINAPI 07-2022 | J64: 3668.39 | K64: =ROUND(J64*(1+BDI),2) -> 4488.28 | M64: COMPOSIÇÃO PRÓPRIA | N64: BDI DE OBRA
A66: 1.8 | B66: PINTURA DA PLATIBANDA METÁLICA | F66: =SUBTOTAL(9,F67:F69) -> 19376.97
A67: 1.8.1 | B67: TEXTURA ACRÍLICA, APLICAÇÃO MANUAL EM PAREDE, UMA DEMÃO. AF_09/2016 | C67: M2 | D67: 585.23 | E67: =K67 -> 15.64 | F67: =ROUND(D67*E67,2) -> 9153 | H67: 95305 | I67: =IF(M67="COMPOSIÇÃO",LEFT(RIGHT(CAMINHO_DO_BD,19),14),IF(M67="INSUMO","INSUMO " & LEFT(RIGHT(CAMINHO_DO_BD,19),14),IF(M67="COMPOSIÇÃO PRÓPRIA","COMPOSIÇÃO PRÓPRIA COM BASE NA " & LEFT(RIGHT(CAMINHO_DO_BD,19),14),"PREÇO MÉDIO DE ORÇAMENTOS"))) -> SINAPI 07-2022 | J67: 12.78 | K67: =ROUND(J67*(1+BDI),2) -> 15.64 | M67: COMPOSIÇÃO | N67: BDI DE OBRA
A68: 1.8.2 | B68: APLICAÇÃO MANUAL DE PINTURA COM TINTA LÁTEX ACRÍLICA EM PAREDES, DUAS DEMÃOS. AF_06/2014 | C68: M2 | D68: 585.23 | E68: =K68 -> 17.47 | F68: =ROUND(D68*E68,2) -> 10223.97 | H68: 88489 | I68: =IF(M68="COMPOSIÇÃO",LEFT(RIGHT(CAMINHO_DO_BD,19),14),IF(M68="INSUMO","INSUMO " & LEFT(RIGHT(CAMINHO_DO_BD,19),14),IF(M68="COMPOSIÇÃO PRÓPRIA","COMPOSIÇÃO PRÓPRIA COM BASE NA " & LEFT(RIGHT(CAMINHO_DO_BD,19),14),"PREÇO MÉDIO DE ORÇAMENTOS"))) -> SINAPI 07-2022 | J68: 14.28 | K68: =ROUND(J68*(1+BDI),2) -> 17.47 | M68: COMPOSIÇÃO | N68: BDI DE OBRA
A70: 1.9 | B70: ELÉTRICA | F70: =SUBTOTAL(9,F71:F72) -> 2138.4
A71: 1.9.1 | B71: INSTALAÇÃO DE LUMINÁRIA TIPO CALHA, DE EMBUTIR, COM 2 LÂMPADAS TUBULARES | C71: UN | D71: 180 | E71: =K71 -> 11.88 | F71: =ROUND(D71*E71,2) -> 2138.4 | H71: C_ELE0136.A | I71: =IF(M71="COMPOSIÇÃO",LEFT(RIGHT(CAMINHO_DO_BD,19),14),IF(M71="INSUMO","INSUMO " & LEFT(RIGHT(CAMINHO_DO_BD,19),14),IF(M71="COMPOSIÇÃO PRÓPRIA","COMPOSIÇÃO PRÓPRIA COM BASE NA " & LEFT(RIGHT(CAMINHO_DO_BD,19),14),"PREÇO MÉDIO DE ORÇAMENTOS"))) -> COMPOSIÇÃO PRÓPRIA COM BASE NA SINAPI 07-2022 | J71: 9.71 | K71: =ROUND(J71*(1+BDI),2) -> 11.88 | M71: COMPOSIÇÃO PRÓPRIA | N71: BDI DE OBRA
A73: 1.10 | B73: LIMPEZA CONTÍNUA DA OBRA | F73: =SUBTOTAL(9,F74:F75) -> 523.2
A74: 1.10.1 | B74: LIMPEZA FINAL DE OBRA | C74: H | D74: 24 | E74: =K74 -> 21.8 | F74: =ROUND(D74*E74,2) -> 523.2 | H74: 88316 | I74: =IF(M74="COMPOSIÇÃO",LEFT(RIGHT(CAMINHO_DO_BD,19),14),IF(M74="INSUMO","INSUMO " & LEFT(RIGHT(CAMINHO_DO_BD,19),14),IF(M74="COMPOSIÇÃO PRÓPRIA","COMPOSIÇÃO PRÓPRIA COM BASE NA " & LEFT(RIGHT(CAMINHO_DO_BD,19),14),"PREÇO MÉDIO DE ORÇAMENTOS"))) -> SINAPI 07-2022 | J74: 17.82 | K74: =ROUND(J74*(1+BDI),2) -> 21.8 | M74: COMPOSIÇÃO | N74: BDI DE OBRA
A76: VALOR TOTAL | F76: =SUBTOTAL(9,F13:F75) -> 532826.89

Sheet COMPOSIÇÃO DO BDI
A2: COMPOSIÇÃO DO BDI OBRAS DE ENGENHARIA
A6: DESCRIÇÃO | C6: %
A7: GRUPO A
A8: A1 | B8: (AC) ADMINISTRAÇÃO CENTRAL - VARIA CONFORME O PORTE DA NÚMERO DE OBRAS EM ANDAMENTO, VOLUME FINANCEIRO DAS OBRAS A INICIAREM, ETC, EM CADA EM CADA EMPRESA - (ACORDAO 2622/2013 - 3,0% A 5,5%) | C8: =ROUND(AVERAGE(3%,5.5%),4) -> 0.0425
B9: TOTAL DO GRUPO A = | C9: =SUM(C8) -> 0.0425
A11: GRUPO B
A12: B1 | B12: (DF) DESPESAS FINANCEIRAS - (ACORDAO 2622/2013 - 0,59% A 1,39%) | C12: =ROUND(AVERAGE(0.59%,1.39%),4) -> 0.0099 | D12: ***deve estar dentro da média dos ultimos 3 meses antecedentes ao contrato
A13: B2 | B13: (S) SEGUROS - (ACORDAO 2622/2013 SEGURO + GARANTIA - 0,8% A 1,0%) | C13: =ROUND(AVERAGE(0.4%,0.5%),4) -> 0.0045
A14: B2 | B14: (G) GARANTIAS - (ACORDAO 2622/2013 SEGURO + GARANTIA - 0,8% A 1,0%) | C14: =ROUND(AVERAGE(0.4%,0.5%),4) -> 0.0045
A15: B3 | B15: (R) TAXA DE RISCO E IMPREVISTOS - (ACORDAO 2622/2013 0,97% A 1,27%) | C15: =ROUND(AVERAGE(0.97%,1.27%),4) -> 0.0112
A16: B4 | B16: (L) LUCRO (ACORDAO 2622/2013 6,16% A 8,96%) | C16: =ROUND(AVERAGE(6.16%,8.96%),4) -> 0.0756
B17: TOTAL DO GRUPO B = | C17: =SUM(C12:C16) -> 0.1057
A19: GRUPO C
A20: C1 | B20: ISS - (ISS% SOBRE 40% DE MÃO DE OBRA)
A21: C2 | B21: %MÃO DE OBRA | C21: 0.4
A22: C3 | B22: ISS DO MUNICÍPIO | C22: 0.05
A23: C4 | B23: SUBTOTAL ISS (C2 X C3) = | C23: =C22*C21 -> 0.02
A24: C5 | B24: PIS | C24: 0.0065
A25: C6 | B25: COFINS | C25: 0.03
B26: TOTAL DO GRUPO C = | C26: =SUM(C23:C25) -> 0.0565
A28: TOTAL BDI (FORMULA ACORDAO 2369/2011) | C28: =ROUND((1+C8+C13+C15+C14)*(1+C12)*(1+C16)/(1-C26)-1,4) -> 0.2235
A29: BDI = (1+AC+S+R+G)x(1+DF)X(1+L)) -1 1-I Onde: AC = taxa representativa das despesas de rateio da Administração Central; S = taxa representativa de Seguros; R = taxa representativa de Riscos; G = taxa representativa de Garantias; DF = taxa representativa das Despesas Financeiras; L = taxa representativa do Lucro; I = taxa representativa da incidência de Impostos. Observação: i) Composição do BDI, intervalos admissíveis e Fórmula de cálculo nos termos do Acórdão 2622/2013 do TCU.

Sheet COMPOSIÇÃO DO BDI REDUZIDO
A2: COMPOSIÇÃO DO BDI REDUZIDO
A6: DESCRIÇÃO | C6: %
A7: GRUPO A
A8: A1 | B8: (AC) ADMINISTRAÇÃO CENTRAL - VARIA CONFORME O PORTE DA NÚMERO DE OBRAS EM ANDAMENTO, VOLUME FINANCEIRO DAS OBRAS A INICIAREM, ETC, EM CADA EM CADA EMPRESA - (ACORDAO 2622/2013 - 1,5% A 4,49%) | C8: =ROUND(AVERAGE(1.5%,4.49%),4) -> 0.03
B9: TOTAL DO GRUPO A = | C9: =SUM(C8) -> 0.03
A11: GRUPO B
A12: B1 | B12: (DF) DESPESAS FINANCEIRAS - (ACORDAO 2622/2013 - 0,85% A 1,11%) | C12: =ROUND(AVERAGE(0.85%,1.11%),4) -> 0.0098
A13: B2 | B13: (S) SEGUROS - (ACORDAO 2622/2013 SEGURO + GARANTIA - 0,3% A 0,82%) | C13: =ROUND(AVERAGE(0.3%/2,0.82%/2),4) -> 0.0028
A14: B2 | B14: (G) GARANTIAS - (ACORDAO 2622/2013 SEGURO + GARANTIA - 0,3% A 0,82%) | C14: =ROUND(AVERAGE(0.3%/2,0.82%/2),4) -> 0.0028
A15: B3 | B15: (R) TAXA DE RISCO E IMPREVISTOS - (ACORDAO 2622/2013 0,56% A 0,89%) | C15: =ROUND(AVERAGE(0.56%,0.89%),4) -> 0.0073
A16: B4 | B16: (L) LUCRO (ACORDAO 2622/2013 3,50% A 6,22%) | C16: =ROUND(AVERAGE(3.5%,6.22%),4) -> 0.0486
B17: TOTAL DO GRUPO B = | C17: =SUM(C12:C16) -> 0.0713
A19: GRUPO C
A20: C1 | B20: ISS - (ISS% SOBRE 40% DE MÃO DE OBRA)
A21: C2 | B21: %MÃO DE OBRA | C21: 0
A22: C3 | B22: ISS DO MUNICÍPIO | C22: 0.05
A23: C4 | B23: SUBTOTAL ISS (C2 X C3) = | C23: =C22*C21 -> 0
A24: C5 | B24: PIS | C24: 0.0065
A25: C6 | B25: COFINS | C25: 0.03
B26: TOTAL DO GRUPO C = | C26: =SUM(C23:C25) -> 0.0365
A28: TOTAL BDI (ACORDAO 2369/2011) | C28: =ROUND((1+C8+C13+C15+C14)*(1+C12)*(1+C16)/(1-C26)-1,4) -> 0.1461
A29: BDI = (1+AC+S+R+G)x(1+DF)X(1+L)) -1 1-I Onde: AC = taxa representativa das despesas de rateio da Administração Central; S = taxa representativa de Seguros; R = taxa representativa de Riscos; G = taxa representativa de Garantias; DF = taxa representativa das Despesas Financeiras; L = taxa representativa do Lucro; I = taxa representativa da incidência de Impostos. Observação: i) Composição do BDI, intervalos admissíveis e Fórmula de cálculo nos termos do Acórdão 2622/2013 do TCU.
